bitfinex/quotes_SOLUSD_20250601
["timestamp","ask_amount","ask_price","bid_price","bid_amount"]
[1748767017069,10.52,153.34,153.29,18.64964886]
[1748767017276,3.8534,153.36,153.29,6.1023]
[1748767017443,0.5202,153.36,153.29,7.684]
[1748767017859,10.52,153.35,153.29,6.1023]
[1748767018453,17.04111663,153.35,153.29,12.62563627]
[1748767018661,3.8534,153.35,153.29,12.62563627]
[1748767018837,9.7456,153.35,153.29,9.33913627]
[1748767019874,16.26679853,153.35,153.29,9.33913627]
[1748767021672,16.26679853,153.35,153.29,2.8158]
[1748767022174,16.26679853,153.35,153.29,9.33930475]
[1748767023463,16.26679853,153.35,153.29,9.33936778]
[1748767023983,16.26679853,153.35,153.29,2.8158]
[1748767026963,16.26679853,153.35,153.29,9.33929483]
[1748767027468,16.26679853,153.35,153.29,2.8158]
[1748767030282,9.7456,153.35,153.29,9.33930642]
[1748767032760,9.7456,153.35,153.28,18.64964886]
[1748767034767,9.7456,153.35,153.29,6.52358275]
[1748767035572,9.7456,153.35,153.29,22.83253962]
[1748767036583,9.7456,153.35,153.3,18.64964886]
[1748767036891,9.7456,153.35,153.31,6.52273172]
[1748767037493,9.7456,153.35,153.32,18.64964886]
[1748767037666,10.68,153.42,153.33,0.14216157]
[1748767037862,10.68,153.42,153.33,0.28432314]
[1748767038489,10.68,153.42,153.32,26.0]
[1748767038690,18.933972,153.4,153.3,32.52304947]
[1748767038987,0.14216157,153.38,153.3,32.52304947]
[1748767039285,10.68,153.37,153.3,32.52304947]
[1748767041087,6.52060511,153.36,153.3,32.52304947]
[1748767043391,10.68,153.37,153.31,18.64964886]
[1748767043597,17.20019485,153.37,153.3,32.52304947]
[1748767046568,17.20019485,153.37,153.3,26.0]
[1748767046769,17.20019485,153.37,153.3,32.52306639]
[1748767049875,10.68,153.37,153.3,32.52306639]
[1748767051284,17.20034203,153.37,153.3,32.52306639]
[1748767060494,10.68,153.37,153.31,18.64964886]
[1748767060895,6.51899076,153.4,153.32,0.14216157]
[1748767061407,44.6556174,153.41,153.32,0.14216157]
[1748767061609,18.6556174,153.41,153.32,0.14216157]
[1748767061802,18.6556174,153.41,153.33,6.52188091]
[1748767062898,12.137,153.41,153.34,18.79181043]
[1748767063189,10.6,153.41,153.34,18.79181043]
[1748767063687,27.6194,153.38,153.27,16.31051632]
[1748767063904,27.6194,153.38,153.28,26.0]
[1748767063905,6.52017995,153.37,153.28,26.0]
[1748767064194,6.52017995,153.37,153.26,6.52485971]
[1748767064525,6.52017995,153.37,153.28,44.64964886]
[1748767064700,10.6,153.36,153.28,44.64964886]
[1748767065411,6.52103032,153.35,153.29,6.52358275]
[1748767067889,6.52103032,153.35,153.28,44.64964886]
[1748767068999,6.52103032,153.35,153.28,51.17362726]
[1748767069525,6.52103032,153.35,153.28,26.0]
[1748767069721,6.52103032,153.35,153.28,32.52394281]
[1748767070607,10.6,153.36,153.29,18.64964886]
[1748767071202,10.6,153.36,153.3,0.14216157]
[1748767071398,10.6,153.36,153.31,6.52273172]
[1748767074214,10.6,153.4,153.32,59.04964886]
[1748767075425,6.51932981,153.39,153.33,6.52188091]
[1748767075625,17.11900572,153.4,153.33,6.52188091]
[1748767077412,10.6,153.4,153.35,6.52103032]
[1748767080110,17.11900529,153.4,153.35,6.52103032]
[1748767082628,17.11900529,153.4,153.28,18.64964886]
[1748767082816,17.11900529,153.4,153.31,18.64964886]
[1748767083030,17.11900529,153.4,153.31,44.64964886]
[1748767083840,33.41626734,153.4,153.31,32.52233076]
[1748767085828,17.11900529,153.4,153.31,32.52233076]
[1748767086024,10.6,153.4,153.32,18.64964886]
[1748767086232,10.6,153.4,153.33,0.28432314]
[1748767086822,17.11893904,153.4,153.33,0.14216157]
[1748767087032,17.11893904,153.4,153.32,18.64964886]
[1748767087841,10.6,153.4,153.35,18.64964886]
[1748767090448,17.11895029,153.4,153.34,26.0]
[1748767090857,17.11895029,153.4,153.28,29.22964886]
[1748767091013,17.11895029,153.4,153.28,10.58]
[1748767091213,17.11895029,153.4,153.31,26.0]
[1748767091969,33.41621234,153.4,153.31,26.0]
[1748767092247,33.41621234,153.4,153.31,32.52253177]
[1748767098650,33.41621234,153.4,153.3,6.5231572]
[1748767100951,17.11895029,153.4,153.32,6.52230628]
[1748767102035,17.11895029,153.4,153.31,18.64964886]
[1748767103254,10.6,153.4,153.33,18.64964886]
[1748767103556,10.6,153.4,153.34,0.14216157]
[1748767104954,10.6,153.4,153.35,6.52103032]
[1748767106878,10.58,153.44,153.38,18.64964886]
[1748767107178,6.51605008,153.47,153.38,18.64964886]
[1748767107355,6.51605008,153.47,153.38,44.64964886]
[1748767107676,17.09564944,153.48,153.39,0.14216157]
[1748767107839,10.58,153.48,153.39,0.28432314]
[1748767108238,10.58,153.48,153.42,18.79181043]
[1748767108468,10.58,153.48,153.42,59.03181043]
[1748767108644,8.15763757,153.5,153.42,59.03181043]
[1748767108841,8.15763757,153.5,153.44,18.64964886]
[1748767109252,14.67242369,153.5,153.44,18.64964886]
[1748767110944,14.67242369,153.5,153.44,25.16681803]
[1748767111384,14.67242369,153.5,153.43,18.64964886]
[1748767114266,56.95906864,153.5,153.41,40.22]
[1748767115687,56.95906864,153.5,153.41,46.73831594]
[1748767116480,40.67242369,153.5,153.42,18.64964886]
[1748767116857,14.67242369,153.5,153.42,18.64964886]
[1748767117545,14.67242369,153.5,153.43,6.51763018]
[1748767117546,6.51478612,153.5,153.43,6.51763018]
[1748767117940,100.39437543,153.51,153.44,18.64964886]
[1748767119060,100.39437543,153.51,153.45,6.51678071]
[1748767119244,100.39439041,153.51,153.45,6.51678071]
[1748767121476,100.39439041,153.51,153.44,18.64964886]
[1748767122552,100.39439041,153.51,153.44,25.16676782]
[1748767122751,100.39439041,153.51,153.44,18.64964886]
[1748767122953,100.39439041,153.51,153.43,32.51749043]
[1748767123469,116.67997441,153.51,153.43,26.0]
[1748767123770,116.67997441,153.51,153.43,32.5176258]
[1748767124093,142.67997441,153.51,153.41,26.0]
[1748767124257,48.79997441,153.51,153.41,26.0]
[1748767124672,0.14216157,153.5,153.4,18.64964886]
[1748767125348,22.80278844,153.49,153.4,25.16847375]
[1748767127070,22.80278844,153.49,153.4,18.64964886]
[1748767127379,22.80278844,153.49,153.4,25.16853617]
[1748767129571,22.80278844,153.49,153.39,66.18]
[1748767129974,22.80278844,153.49,153.39,72.69930793]
[1748767131569,22.80278844,153.49,153.39,32.51930793]
[1748767131767,22.80278844,153.49,153.39,72.69930793]
[1748767133872,6.51593145,153.47,153.39,72.69930793]
[1748767134196,22.80576008,153.47,153.38,65.34938036]
[1748767134602,22.80576008,153.47,153.38,25.16938036]
[1748767138804,22.80576008,153.47,153.37,66.32216157]
[1748767138805,26.0,153.44,153.34,10.52]
[1748767139119,10.52,153.43,153.34,10.52]
[1748767139314,10.52,153.43,153.33,18.64964886]
[1748767139475,22.81467961,153.41,153.32,6.5220123]
[1748767139790,22.81467961,153.41,153.32,46.7020123]
[1748767140794,6.51847989,153.41,153.32,6.5220123]
[1748767140984,6.51847989,153.41,153.33,18.64964886]
[1748767141583,6.51805501,153.42,153.34,6.52145558]
[1748767141781,22.81319254,153.42,153.33,6.52171048]
[1748767142184,0.14216157,153.41,153.32,46.70225446]
[1748767142586,26.28432314,153.41,153.31,32.52260965]
[1748767143789,6.51890482,153.4,153.31,32.52260965]
[1748767144182,6.51890482,153.4,153.32,18.64964886]
[1748767144607,6.51890482,153.4,153.31,32.52260965]
[1748767146108,8.1774,153.39,153.31,32.52260965]
[1748767146304,10.5,153.38,153.31,32.52260965]
[1748767148398,10.5,153.38,153.32,18.64964886]
[1748767149423,10.5,153.38,153.31,48.82943895]
[1748767149594,17.01983469,153.38,153.31,32.52260965]
[1748767152120,17.01983469,153.38,153.31,6.52260965]
[1748767161269,10.5,153.38,153.32,18.64964886]
[1748767162184,32.51878046,153.41,153.32,18.64964886]
[1748767162761,6.51878046,153.41,153.32,44.64964886]
[1748767162965,6.51878046,153.41,153.33,6.52188091]
[1748767163886,17.01815772,153.42,153.33,22.82658318]
[1748767168679,8.11339676,153.41,153.33,22.82658318]
[1748767170096,1.5946,153.41,153.34,18.64964886]
[1748767170299,1.5946,153.41,153.34,58.84964886]
[1748767170777,1.5946,153.41,153.35,6.52103032]
[1748767173966,1.5946,153.41,153.35,22.82360612]
[1748767174696,1.5946,153.41,153.35,6.52103032]
[1748767177673,8.11309975,153.41,153.35,6.52103032]
[1748767178006,8.11309975,153.41,153.33,6.52188091]
[1748767178721,26.0,153.37,153.24,22.83998955]
[1748767178925,10.5,153.36,153.24,22.83998955]
[1748767179079,10.5,153.36,153.26,18.64964886]
[1748767179780,6.52103032,153.35,153.27,6.524434]
[1748767196686,22.82360612,153.35,153.26,6.52470995]
[1748767197808,26.28432314,153.34,153.24,6.5257113]
[1748767198815,6.52188091,153.33,153.24,6.5257113]
[1748767199011,6.52188091,153.33,153.25,18.64964886]
[1748767199806,157.29684605,153.4,153.29,18.64964886]
[1748767200009,10.5,153.38,153.29,18.64964886]
[1748767200225,36.5,153.38,153.29,18.64964886]
[1748767200898,6.52017995,153.37,153.3,6.5231572]
[1748767201404,26.0,153.34,153.27,6.52429444]
[1748767201708,0.14216157,153.36,153.26,46.72471861]
[1748767201929,27.68216157,153.36,153.26,46.72471861]
[1748767202095,26.0,153.34,153.26,6.52471861]
[1748767202285,10.5,153.33,153.26,6.52471861]
[1748767202811,17.02224873,153.33,153.26,6.52471861]
[1748767203303,17.02224873,153.33,153.24,25.17524536]
[1748767205215,17.02224873,153.33,153.24,6.5255965]
[1748767205389,0.14216157,153.32,153.23,32.52597863]
[1748767205905,17.02224873,153.33,153.24,18.64964886]
[1748767207014,17.02224873,153.33,153.25,6.52528548]
[1748767210023,17.02224873,153.33,153.24,6.5257113]
[1748767210339,17.02224873,153.33,153.24,46.7257113]
[1748767210497,17.02224873,153.33,153.24,6.5257113]
[1748767210809,33.326951,153.33,153.24,6.5257113]
[1748767211423,0.14216157,153.32,153.23,32.52612629]
[1748767212096,6.52273172,153.31,153.23,32.52612629]
[1748767214303,6.52230628,153.32,153.23,32.52612629]
[1748767217337,6.52230628,153.32,153.24,18.64964886]
[1748767219006,6.52230628,153.32,153.23,32.52612629]
[1748767219535,6.52230628,153.32,153.24,18.64964886]
[1748767220213,10.5,153.33,153.28,18.64964886]
[1748767220421,159.5,153.37,153.28,18.64964886]
[1748767220809,159.5,153.37,153.28,58.84964886]
[1748767221024,6.52088847,153.36,153.28,58.84964886]
[1748767221325,6.52088847,153.36,153.29,6.52358275]
[1748767221929,166.02031718,153.37,153.29,6.52358275]
[1748767222530,10.5,153.37,153.3,18.64964886]
[1748767223412,10.5,153.37,153.31,6.52273172]
[1748767224236,17.02018929,153.37,153.31,6.52273172]
[1748767230428,10.5,153.37,153.31,6.52273172]
[1748767231238,1.6218,153.4,153.32,18.64964886]
[1748767231544,1.6218,153.4,153.34,18.64964886]
[1748767232636,1.6218,153.4,153.35,6.52103032]
[1748767233022,17.01853141,153.41,153.35,6.52103032]
[1748767233225,10.5,153.41,153.35,6.52103032]
[1748767236243,6.6504,153.4,153.35,6.52103032]
[1748767237231,10.5,153.41,153.35,6.52103032]
[1748767237427,17.01850103,153.41,153.35,6.52103032]
[1748767240149,17.01850103,153.41,153.33,66.18]
[1748767241231,17.01850103,153.41,153.33,72.70177194]
[1748767244919,10.5,153.41,153.35,6.52103032]
[1748767249928,10.5,153.41,153.36,18.64964886]
[1748767250347,10.5,153.41,153.37,6.52017995]
[1748767251255,17.01853585,153.41,153.35,6.52103032]
[1748767256659,10.5,153.41,153.35,6.52103032]
[1748767257245,10.5,153.41,153.36,18.64964886]
[1748767257456,1.6218,153.43,153.36,18.64964886]
[1748767257841,8.13947383,153.43,153.36,18.64964886]
[1748767258056,8.13947383,153.43,153.37,0.14216157]
[1748767258057,1.6218,153.43,153.37,0.14216157]
[1748767258739,1.6218,153.43,153.38,6.51975485]
[1748767263466,8.13948595,153.43,153.38,6.51975485]
[1748767265151,8.13948595,153.43,153.37,32.52000111]
[1748767265356,8.13948595,153.43,153.37,6.52000111]
[1748767268487,8.13948595,153.43,153.36,25.17007742]
[1748767273581,1.6218,153.43,153.36,25.17007742]
[1748767273893,6.4881,153.45,153.4,18.79181043]
[1748767274181,6.51565316,153.48,153.4,58.78964886]
[1748767274360,6.51565316,153.48,153.4,40.14]
[1748767274790,6.51565316,153.48,153.37,115.88432314]
[1748767274791,26.0,153.45,153.36,6.52042856]
[1748767274961,10.48,153.44,153.35,51.17051677]
[1748767275662,6.51763018,153.43,153.35,51.17051677]
[1748767276660,6.51847989,153.41,153.35,51.17051677]
[1748767276882,6.51847989,153.41,153.35,25.17051677]
[1748767292896,6.51847989,153.41,153.34,32.52131247]
[1748767295996,12.61647989,153.41,153.34,32.52131247]
[1748767296299,8.13659365,153.4,153.34,32.52131247]
[1748767297899,1.6173,153.4,153.34,32.52131247]
[1748767298294,8.13622286,153.4,153.34,32.52131247]
[1748767299794,1.6173,153.4,153.34,32.52131247]
[1748767306309,1.6173,153.4,153.35,25.17036723]
[1748767307584,6.51850402,153.41,153.35,25.17036723]
[1748767309601,8.02270402,153.41,153.35,25.17036723]
[1748767310626,1.5042,153.41,153.35,25.17036723]
[1748767311418,1.5042,153.41,153.36,0.14216157]
[1748767311596,10.48,153.42,153.36,0.28432314]
[1748767311794,10.48,153.42,153.38,18.64964886]
[1748767312001,24.55802411,153.46,153.38,18.64964886]
[1748767312921,24.55802411,153.46,153.39,6.51932981]
[1748767313416,18.0415,153.46,153.39,6.51932981]
[1748767314012,11.9842,153.46,153.39,6.51932981]
[1748767314610,18.50056636,153.46,153.39,6.51932981]
[1748767317004,11.9842,153.46,153.4,18.64964886]
[1748767317212,11.9842,153.46,153.41,0.14216157]
[1748767317629,1.5042,153.46,153.41,0.14216157]
[1748767318207,10.48,153.5,153.43,0.14216157]
[1748767318632,10.48,153.5,153.44,18.64964886]
[1748767319035,10.48,153.5,153.45,6.51678071]
[1748767319924,16.99325213,153.54,153.44,6.51707214]
[1748767320220,16.99325213,153.54,153.44,25.166721]
[1748767320920,6.51380927,153.52,153.43,26.0]
[1748767321227,22.79833245,153.52,153.43,26.0]
[1748767321728,26.0,153.49,153.4,10.48]
[1748767322025,10.48,153.48,153.4,18.64964886]
[1748767322229,1.5536,153.47,153.4,18.64964886]
[1748767322398,7.7058,153.47,153.39,26.0]
[1748767322947,22.80724618,153.46,153.36,17.00051172]
[1748767323224,22.80724618,153.46,153.36,32.52051172]
[1748767323427,22.80724618,153.46,153.36,72.64051172]
[1748767323923,6.51635605,153.46,153.37,18.64964886]
[1748767324219,6.51635605,153.46,153.36,72.64051172]
[1748767325111,22.80724618,153.46,153.36,32.52051172]
[1748767325309,22.80724618,153.46,153.36,72.64051172]
[1748767325823,22.80724618,153.46,153.37,25.16953867]
[1748767326820,6.51635605,153.46,153.37,65.28953867]
[1748767327230,6.51635605,153.46,153.37,81.58998856]
[1748767332214,6.51635605,153.46,153.39,6.51932981]
[1748767332417,8.0696171,153.47,153.39,32.51932981]
[1748767333129,8.0696171,153.47,153.4,18.64964886]
[1748767333528,6.5160171,153.47,153.41,6.51847989]
[1748767334027,16.99555718,153.48,153.41,6.51847989]
[1748767334531,0.14216157,153.47,153.39,32.51916949]
[1748767334719,0.14216157,153.47,153.39,26.0]
[1748767335239,0.14216157,153.47,153.38,6.51960004]
[1748767335539,6.51635605,153.46,153.38,6.51960004]
[1748767337034,6.51635605,153.46,153.37,32.52006927]
[1748767337035,22.80724618,153.46,153.37,32.52006927]
[1748767340016,6.51635605,153.46,153.37,32.52006927]
[1748767343231,22.80580987,153.47,153.38,18.64964886]
[1748767343731,6.51593145,153.47,153.38,18.64964886]
[1748767344641,6.51593145,153.47,153.39,0.14216157]
[1748767344839,6.51593145,153.47,153.4,6.51890482]
[1748767347549,6.51593145,153.47,153.39,6.51932981]
[1748767351251,22.80576008,153.47,153.38,25.16925097]
[1748767355234,26.14216157,153.46,153.35,18.64964886]
[1748767355543,10.46,153.45,153.36,40.1]
[1748767356055,10.46,153.45,153.36,46.62044245]
[1748767357251,6.51720542,153.44,153.36,6.52044245]
[1748767357454,6.51720542,153.44,153.36,46.62044245]
[1748767360280,6.51720542,153.44,153.36,6.52044245]
[1748767362561,6.51720542,153.44,153.38,6.51975485]
[1748767362770,16.9768941,153.45,153.38,6.51975485]
[1748767365689,10.46,153.45,153.39,18.64964886]
[1748767367785,10.46,153.45,153.4,6.51890482]
[1748767367957,10.46,153.45,153.4,46.61890482]
[1748767369964,6.51566966,153.48,153.41,18.64964886]
[1748767370595,16.97519377,153.49,153.41,18.64964886]
[1748767372586,16.97519377,153.49,153.42,6.51805501]
[1748767373180,16.97519377,153.49,153.41,46.59831927]
[1748767374099,33.2628998,153.49,153.41,40.08]
[1748767380981,33.2628998,153.49,153.38,26.0]
[1748767380982,0.28432314,153.48,153.38,26.0]
[1748767381606,18.933972,153.48,153.38,26.0]
[1748767381902,0.14216157,153.46,153.36,25.1700958]
[1748767382085,0.14216157,153.46,153.37,40.08]
[1748767382698,22.80873248,153.45,153.37,40.08]
[1748767382902,10.46,153.44,153.37,40.08]
[1748767383091,10.46,153.44,153.37,6.52012656]
[1748767384606,6.51763018,153.43,153.37,6.52012656]
[1748767385289,6.51763018,153.43,153.37,46.60012656]
[1748767398714,22.81170565,153.43,153.31,16.30577981]
[1748767399032,22.81170565,153.43,153.32,84.72964886]
[1748767399321,22.81170565,153.43,153.32,58.72964886]
[1748767399993,22.81170565,153.43,153.33,6.52188091]
[1748767403203,16.9773344,153.44,153.36,44.64964886]
[1748767403403,10.46,153.44,153.38,18.64964886]
[1748767404598,16.97722464,153.44,153.39,6.51932981]
[1748767405517,10.46,153.44,153.39,6.51932981]
[1748767406119,104.28,153.48,153.4,18.64964886]
[1748767406717,6.51608986,153.47,153.41,6.51847989]
[1748767407702,6.51608986,153.47,153.4,18.64964886]
[1748767408739,6.51608986,153.47,153.41,6.51847989]
[1748767409929,6.51608986,153.47,153.4,25.16855368]
[1748767412921,18.51082832,153.48,153.4,25.16855368]
[1748767415430,18.51082832,153.48,153.4,41.46581573]
[1748767415620,11.9953,153.48,153.41,0.14216157]
[1748767415821,11.9953,153.48,153.42,40.06]
[1748767416233,19.32954548,153.5,153.43,18.79181043]
[1748767416417,19.32954548,153.5,153.44,0.14216157]
[1748767416825,11.9953,153.52,153.44,0.14216157]
[1748767417020,11.9953,153.52,153.44,6.51720542]
[1748767417021,18.50920962,153.52,153.44,6.51720542]
[1748767417220,18.50920962,153.52,153.45,18.64964886]
[1748767417420,18.50920962,153.52,153.44,6.51720542]
[1748767417625,18.50920962,153.52,153.44,40.06]
[1748767419031,18.50920962,153.52,153.44,46.57693912]
[1748767420417,16.95390962,153.52,153.44,46.57693912]
[1748767420722,33.2384328,153.52,153.44,40.06]
[1748767422831,33.2384328,153.52,153.44,46.57690442]
[1748767424523,33.2384328,153.52,153.44,40.06]
[1748767425133,33.2384328,153.52,153.44,46.57719935]
[1748767425520,16.95390962,153.52,153.44,46.57719935]
[1748767428171,10.44,153.52,153.45,18.64964886]
[1748767429451,10.44,153.52,153.46,0.14216157]
[1748767429833,10.44,153.52,153.47,6.51593145]
[1748767430536,6.51302864,153.54,153.47,6.51593145]
[1748767430738,6.5126994,153.55,153.47,6.51593145]
[1748767431848,22.79404098,153.55,153.46,25.16583669]
[1748767441555,6.5126994,153.55,153.47,0.14216157]
[1748767442661,6.5126994,153.55,153.46,18.64964886]
[1748767442850,6.5126994,153.55,153.45,155.62]
[1748767443196,6.5126994,153.55,153.45,162.136687]
[1748767443197,22.79404098,153.55,153.45,162.136687]
[1748767444939,0.14216157,153.54,153.45,115.6]
[1748767445155,0.28432314,153.54,153.45,115.6]
[1748767445564,0.28432314,153.54,153.45,26.0]
[1748767445865,171.79404098,153.55,153.45,32.51665984]
[1748767446739,0.28432314,153.54,153.45,26.0]
[1748767447569,22.79684751,153.53,153.45,26.0]
[1748767448070,10.42,153.52,153.45,26.0]
[1748767448651,10.42,153.52,153.45,32.51673053]
[1748767448842,10.42,153.52,153.45,26.0]
[1748767449569,6.5142336,153.51,153.45,26.0]
[1748767451265,0.28432314,153.5,153.38,16.29854421]
[1748767451453,26.0,153.48,153.39,58.66964886]
[1748767451770,10.42,153.47,153.39,58.66964886]
[1748767451949,10.42,153.47,153.39,18.64964886]
[1748767452155,10.42,153.47,153.39,58.66964886]
[1748767452469,6.51635605,153.46,153.4,6.51890482]
[1748767457864,10.42,153.47,153.41,18.64964886]
[1748767458255,6.51465798,153.5,153.41,18.64964886]
[1748767459590,6.51465798,153.5,153.42,6.51805501]
[1748767461873,22.80130293,153.5,153.4,6.51890482]
[1748767462082,22.80130293,153.5,153.4,46.53890482]
[1748767463382,16.93438861,153.51,153.41,18.79181043]
[1748767463572,10.42,153.51,153.44,18.64964886]
[1748767463776,10.42,153.51,153.45,40.02]
[1748767463972,10.42,153.51,153.46,6.51635605]
[1748767464865,16.93428471,153.51,153.44,6.51708829]
[1748767465065,42.93428471,153.51,153.43,46.53747435]
[1748767465761,59.21986871,153.51,153.43,40.02]
[1748767465964,6.51508241,153.49,153.42,6.51791661]
[1748767466572,6.51508241,153.49,153.41,122.11831048]
[1748767467494,6.51508241,153.49,153.41,96.11831048]
[1748767467867,22.9434645,153.5,153.41,96.11831048]
[1748767468385,171.9434645,153.5,153.39,32.51897566]
[1748767468581,0.14216157,153.49,153.39,32.51897566]
[1748767469585,6.5155069,153.48,153.39,32.51897566]
[1748767471584,6.51508241,153.49,153.4,18.64964886]
[1748767473811,6.51508241,153.49,153.41,6.51847989]
[1748767478187,6.51465798,153.5,153.41,6.51847989]
[1748767483292,6.51465798,153.5,153.42,18.64964886]
[1748767484888,6.51465798,153.5,153.43,6.51763018]
[1748767485781,16.93439146,153.51,153.44,18.64964886]
[1748767486200,10.42,153.51,153.44,18.64964886]
[1748767486394,10.42,153.51,153.44,58.64964886]
[1748767487211,10.42,153.51,153.45,6.51678071]
[1748767487995,16.93423936,153.51,153.45,6.51678071]
[1748767494907,10.42,153.51,153.45,6.51678071]
[1748767497021,10.42,153.51,153.46,18.64964886]
[1748767497209,1.5955,153.52,153.47,0.14216157]
[1748767497716,1.5955,153.52,153.49,26.0]
[1748767498599,1.5955,153.52,153.5,6.51465798]
[1748767500821,1.5955,153.52,153.49,32.5149108]
[1748767503628,10.4,153.55,153.49,32.5149108]
[1748767504201,10.4,153.55,153.5,18.64964886]
[1748767505215,10.4,153.55,153.51,6.5142336]
[1748767516620,1.6489,153.54,153.51,6.5142336]
[1748767521547,1.6489,153.54,153.45,32.58225999]
[1748767521548,8.16187369,153.54,153.42,122.18863452]
[1748767521842,8.16187369,153.54,153.43,58.60964886]
[1748767522035,6.6278,153.53,153.43,41.46031576]
[1748767522355,6.6278,153.53,153.44,39.96]
[1748767522521,6.6278,153.53,153.45,18.64964886]
[1748767523224,6.51380927,153.52,153.45,25.16607255]
[1748767523547,22.79833245,153.52,153.43,6.51727725]
[1748767523747,0.14216157,153.51,153.42,32.51796281]
[1748767523956,10.38,153.5,153.42,32.51796281]
[1748767524246,10.38,153.5,153.43,18.64964886]
[1748767525150,10.38,153.5,153.44,6.51720542]
[1748767526223,16.89467351,153.5,153.44,6.51720542]
[1748767533749,10.38,153.5,153.44,6.51720542]
[1748767535841,16.8948316,153.5,153.44,6.51720542]
[1748767536355,10.38,153.5,153.44,6.51720542]
[1748767537343,10.38,153.5,153.45,44.64964886]
[1748767537723,6.5135192,153.53,153.45,44.64964886]
[1748767539058,6.5135192,153.53,153.46,6.51635605]
[1748767539264,16.91312886,153.54,153.47,18.64964886]
[1748767541557,16.91312886,153.54,153.48,6.5155069]
[1748767546366,16.91312886,153.54,153.47,25.16543882]
[1748767552939,10.4,153.54,153.47,25.16543882]
[1748767554160,10.4,153.54,153.49,6.51508241]
[1748767557056,16.91317258,153.54,153.48,6.51533823]
[1748767557359,18.54527258,153.54,153.47,96.11576545]
[1748767561055,18.54527258,153.54,153.47,6.51576545]
[1748767563474,12.0321,153.54,153.48,18.64964886]
[1748767563649,12.8484572,153.57,153.49,0.14216157]
[1748767563852,12.8484572,153.57,153.49,0.28432314]
[1748767564976,12.8484572,153.57,153.51,18.64964886]
[1748767565351,12.8484572,153.57,153.5,6.51465798]
[1748767565553,12.8484572,153.57,153.49,25.16459109]
[1748767566655,29.1276784,153.57,153.48,32.51537737]
[1748767566975,1.6464,153.56,153.48,6.51537737]
[1748767567852,1.6464,153.56,153.47,84.58964886]
[1748767567853,1.6464,153.56,153.47,91.10540997]
[1748767568280,10.38,153.55,153.47,91.10540997]
[1748767569781,6.51296079,153.54,153.47,91.10540997]
[1748767570490,6.51296079,153.54,153.43,118.62964886]
[1748767570491,0.14216157,153.53,153.43,118.62964886]
[1748767570665,0.28432314,153.53,153.43,6.51748045]
[1748767570869,0.28432314,153.53,153.43,32.51748045]
[1748767571066,0.28432314,153.53,153.43,26.0]
[1748767571682,22.7998176,153.51,153.43,26.0]
[1748767571888,10.36,153.5,153.42,18.64964886]
[1748767572379,10.36,153.5,153.41,72.4583271]
[1748767572861,10.36,153.5,153.41,26.0]
[1748767573063,10.36,153.5,153.4,65.10842096]
[1748767573266,10.36,153.5,153.4,91.10842096]
[1748767573687,6.51508241,153.49,153.4,91.10842096]
[1748767578163,6.51508241,153.49,153.42,6.51805501]
[1748767579761,6.51508241,153.49,153.42,18.64964886]
[1748767581487,6.51508241,153.49,153.43,6.51763018]
[1748767585097,22.80278844,153.49,153.4,26.0]
[1748767585286,22.80278844,153.49,153.4,65.94]
[1748767585483,22.80278844,153.49,153.4,26.0]
[1748767585674,22.80278844,153.49,153.4,65.94]
[1748767586078,22.80278844,153.49,153.4,72.45879251]
[1748767586985,10.36,153.5,153.41,18.64964886]
[1748767587297,10.36,153.5,153.44,26.0]
[1748767587687,10.36,153.5,153.41,18.64964886]
[1748767587997,10.36,153.5,153.41,84.58964886]
[1748767588689,16.8746823,153.5,153.41,65.94]
[1748767588889,16.8746823,153.5,153.41,72.45832707]
[1748767589207,0.14216157,153.49,153.41,26.0]
[1748767590304,0.14216157,153.49,153.41,32.51841328]
[1748767590677,6.5155069,153.48,153.41,32.51841328]
[1748767599907,22.80427416,153.48,153.37,16.29949905]
[1748767600215,1.5052,153.47,153.38,44.64964886]
[1748767600793,8.0196,153.47,153.38,32.51975485]
[1748767602516,23.09156932,153.46,153.38,26.0]
[1748767602704,10.36,153.45,153.38,26.0]
[1748767603695,6.51720542,153.44,153.38,26.0]
[1748767604223,6.51720542,153.44,153.35,6.52103032]
[1748767604434,22.81021897,153.44,153.35,6.52103032]
[1748767604995,1.6636,153.43,153.35,6.52103032]
[1748767605196,0.28432314,153.42,153.32,46.46230628]
[1748767605529,0.28432314,153.42,153.33,26.0]
[1748767605732,6.51847989,153.41,153.33,6.52177535]
[1748767605915,10.36,153.4,153.33,6.52177535]
[1748767607003,10.36,153.4,153.32,6.52215035]